fUSD/lending_fUSD_20260115
["ID","MTS","AMOUNT","RATE_DAILY","PERIOD"]
[402065567,1768503078865,-508.49,0.00036438,10]
[402065568,1768503078875,-500.0,0.00036438,10]
[402065569,1768503078884,-500.0,0.00036438,10]
[402065570,1768503078894,-500.0,0.00036438,10]
[402065571,1768503078904,-500.0,0.00036438,10]
[402065572,1768503078914,-976.71,0.00036438,10]
[402065573,1768503078924,-500.0,0.00036438,10]
[402065574,1768503079025,-500.0,0.00036438,10]
[402065575,1768503079035,-500.0,0.00036438,10]
[402065576,1768503079044,-500.0,0.00036438,10]
[402065577,1768503079053,-500.0,0.00036438,10]
[402065578,1768503079062,-500.0,0.00036438,10]
[402065579,1768503079072,-500.0,0.00036438,10]
[402065580,1768503079082,-500.0,0.00036438,10]
[402065581,1768503079091,-500.0,0.00036438,10]
[402065582,1768503079100,-700.54,0.00036438,10]
[402065583,1768503079112,-500.0,0.00036438,10]
[402065584,1768503079121,-1029.54,0.00036438,10]
[402065585,1768503079130,-791.83,0.00036438,10]
[402065586,1768503079139,-776.08,0.00036438,10]
[402065587,1768503079148,-472.23842521,0.00036438,10]
[402065588,1768503079157,-572.19,0.00036438,10]
[402065589,1768503079166,-500.0,0.00036438,10]
[402065590,1768503079176,-500.0,0.00036438,10]
[402065591,1768503079185,-500.0,0.00036438,10]
[402065592,1768503079194,-500.0,0.00036438,10]
[402065593,1768503079203,-646.82,0.00036438,10]
[402065594,1768503079212,-1024.61,0.00036438,10]
[402065595,1768503079221,-500.0,0.00036438,10]
[402065596,1768503079231,-1068.28,0.00036438,10]
[402065597,1768503079240,-500.0,0.00036438,10]
[402065598,1768503079249,-979.08,0.00036438,10]
[402065599,1768503079258,-823.87,0.00036438,10]
[402065600,1768503079267,-567.11,0.00036438,10]
[402065601,1768503079276,-570.32,0.00036438,10]
[402065602,1768503079286,-557.87,0.00036438,2]
[402065603,1768503079295,-519.06,0.00036438,10]
[402065604,1768503079307,-749.96,0.00036438,10]
[402065605,1768503079316,-838.14,0.00036438,10]
[402065606,1768503079325,-788.5,0.00036438,10]
[402065607,1768503079335,-1071.94,0.00036438,10]
[402065608,1768503079343,-500.0,0.00036438,10]
[402065609,1768503079352,-500.0,0.00036438,10]
[402065610,1768503079362,-854.37,0.00036438,10]
[402065611,1768503079371,-860.93,0.00036438,10]
[402065612,1768503079380,-500.0,0.00036438,10]
[402065613,1768503079389,-500.0,0.00036438,10]
[402065614,1768503079398,-500.0,0.00036438,10]
[402065615,1768503079407,-500.0,0.00036438,10]
[402065616,1768503079416,-425.82379909,0.00036438,10]
[402065617,1768503079425,-500.0,0.00036438,10]
[402065618,1768503079434,-500.0,0.00036438,10]
[402065619,1768503079444,-663.26,0.00036438,10]
[402065620,1768503079453,-500.0,0.00036438,10]
[402065621,1768503079462,-568.5,0.00036438,10]
[402065622,1768503079471,-500.0,0.00036438,10]
[402065623,1768503079480,-933.24,0.00036438,10]
[402065624,1768503079489,-699.38,0.00036438,10]
[402065625,1768503079499,-500.0,0.00036438,10]
[402065626,1768503079510,-500.0,0.00036438,10]
[402065627,1768503079519,-171.432704,0.00036438,31]
[402065628,1768503079529,-631.46,0.00036438,10]
[402065629,1768503079538,-500.0,0.00036438,10]
[402065630,1768503079547,-500.0,0.00036438,10]
[402065631,1768503079556,-500.0,0.00036438,10]
[402065632,1768503079565,-529.8,0.00036438,10]
[402065633,1768503079574,-500.0,0.00036438,10]
[402065634,1768503079584,-348.15008251,0.00036438,10]
[402065635,1768503079593,-500.0,0.00036438,10]
[402065636,1768503079604,-644.57,0.00036438,10]
[402065637,1768503079615,-500.0,0.00036438,10]
[402065638,1768503079624,-500.0,0.00036438,10]
[402065639,1768503079635,-500.0,0.00036438,10]
[402065640,1768503079646,-500.0,0.00036438,10]
[402065641,1768503079656,-719.2,0.00036438,10]
[402065642,1768503079665,-500.0,0.00036438,10]
[402065643,1768503079674,-887.83,0.00036438,10]
[402065644,1768503079683,-500.0,0.00036438,10]
[402065645,1768503079693,-500.0,0.00036438,10]
[402065646,1768503079702,-339.93935321,0.00036438,10]
[402065647,1768503079711,-500.0,0.00036438,10]
[402065648,1768503079721,-500.0,0.00036438,10]
[402065649,1768503079730,-500.0,0.00036438,10]
[402065650,1768503079741,-151.0,0.00036438,31]
[402065651,1768503079750,-500.0,0.00036438,10]
[402065652,1768503079759,-565.2,0.00036438,10]
[402065653,1768503079769,-151.0,0.00036438,31]
[402065654,1768503079782,-500.0,0.00036438,10]
[402065655,1768503079792,-759.87,0.00036438,10]
[402065656,1768503079801,-500.0,0.00036438,10]
[402065657,1768503079811,-500.0,0.00036438,10]
[402065658,1768503079821,-870.29,0.00036438,10]
[402065659,1768503079830,-749.91,0.00036438,10]
[402065660,1768503079839,-500.0,0.00036438,10]
[402065661,1768503079849,-1205.31,0.00036438,10]
[402065662,1768503079860,-151.0,0.00036438,3]
[402065663,1768503079869,-500.0,0.00036438,10]
[402065664,1768503079878,-1258.76,0.00036438,10]
[402065665,1768503079887,-500.0,0.00036438,10]
[402065666,1768503079897,-500.0,0.00036438,10]
[402065667,1768503079906,-500.0,0.00036438,10]
[402065668,1768503079915,-500.0,0.00036438,10]
[402065669,1768503079925,-500.0,0.00036438,10]
[402065670,1768503079935,-697.57,0.00036438,10]
[402065671,1768503079944,-585.05,0.00036438,10]
[402065672,1768503079954,-897.42,0.00036438,10]
[402065673,1768503079963,-500.0,0.00036438,10]
[402065674,1768503079973,-500.0,0.00036438,10]
[402065675,1768503079983,-500.0,0.00036438,10]
[402065676,1768503079992,-500.0,0.00036438,10]
[402065677,1768503080001,-500.0,0.00036438,10]
[402065678,1768503080010,-641.99,0.00036438,10]
[402065679,1768503080019,-597.58,0.00036438,10]
[402065680,1768503080029,-500.0,0.00036438,10]
[402065681,1768503080038,-500.0,0.00036438,10]
[402065682,1768503080047,-500.0,0.00036438,10]
[402065683,1768503080055,-790.79,0.00036438,10]
[402065684,1768503080064,-500.0,0.00036438,10]
[402065685,1768503080073,-741.3,0.00036438,10]
[402065686,1768503080082,-160.040885,0.00036438,10]
[402065687,1768503080092,-1038.12,0.00036438,10]
[402065688,1768503080102,-503.14,0.00036438,10]
[402065689,1768503080111,-500.0,0.00036438,10]
[402065690,1768503080120,-826.33,0.00036438,10]
[402065691,1768503080129,-738.86,0.00036438,10]
[402065692,1768503080138,-156.652894,0.00036438,10]
[402065693,1768503080147,-259.11769,0.00036438,10]
[402065694,1768503080156,-266.28,0.00036438,10]
[402065695,1768503080165,-500.0,0.00036438,10]
[402065696,1768503080174,-500.0,0.00036438,10]
[402065697,1768503080183,-500.0,0.00036438,10]
[402065698,1768503080192,-500.0,0.00036438,10]
[402065699,1768503080201,-500.0,0.00036438,10]
[402065700,1768503080210,-500.0,0.00036438,10]
[402065701,1768503080219,-500.0,0.00036438,10]
[402065702,1768503080228,-500.0,0.00036438,10]
[402065703,1768503080237,-500.0,0.00036438,10]
[402065704,1768503080246,-627.23,0.00036438,10]
[402065705,1768503080255,-500.0,0.00036438,10]
[402065706,1768503080264,-687.56,0.00036438,10]
[402065707,1768503080273,-500.0,0.00036438,10]
[402065708,1768503080282,-500.0,0.00036438,10]
[402065709,1768503080291,-1126.89,0.00036438,10]
[402065710,1768503080300,-500.0,0.00036438,10]
[402065711,1768503080309,-967.55,0.00036438,10]
[402065712,1768503080318,-500.0,0.00036438,10]
[402065713,1768503080327,-500.0,0.00036438,10]
[402065714,1768503080336,-500.0,0.00036438,10]
[402065715,1768503080345,-600.01,0.00036438,10]
[402065716,1768503080354,-500.0,0.00036438,10]
[402065717,1768503080364,-500.0,0.00036438,10]
[402065718,1768503080373,-160.54541963,0.00036438,10]
[402065719,1768503080383,-294.96169629,0.00036438,10]
[402065720,1768503080392,-500.0,0.00036438,10]
[402065721,1768503080401,-500.0,0.00036438,10]
[402065722,1768503080410,-500.0,0.00036438,10]
[402065723,1768503080419,-500.0,0.00036438,10]
[402065724,1768503080428,-832.97,0.00036438,10]
[402065725,1768503080438,-500.0,0.00036438,10]
[402065726,1768503080446,-803.06,0.00036438,10]
[402065727,1768503080455,-911.54,0.00036438,10]
[402065728,1768503080464,-500.0,0.00036438,10]
[402065729,1768503080473,-500.0,0.00036438,10]
[402065730,1768503080484,-660.17,0.00036438,10]
[402065731,1768503080493,-541.13,0.00036438,10]
[402065732,1768503080502,-500.0,0.00036438,10]
[402065733,1768503080511,-500.0,0.00036438,10]
[402065734,1768503080521,-500.0,0.00036438,10]
[402065735,1768503080530,-500.0,0.00036438,10]
[402065736,1768503080539,-696.38,0.00036438,10]
[402065737,1768503080549,-500.0,0.00036438,10]
[402065738,1768503080558,-955.0,0.00036438,10]
[402065739,1768503080567,-500.0,0.00036438,10]
[402065740,1768503080576,-151.0,0.00036438,31]
[402065741,1768503080585,-674.14,0.00036438,10]
[402065742,1768503080594,-500.0,0.00036438,10]
[402065743,1768503080603,-151.0,0.00036438,31]
[402065744,1768503080614,-585.65,0.00036438,10]
[402065745,1768503080623,-500.0,0.00036438,10]
[402065746,1768503080632,-1000.53,0.00036438,10]
[402065747,1768503080641,-555.04,0.00036438,10]
[402065748,1768503080650,-500.0,0.00036438,10]
[402065749,1768503080659,-636.53,0.00036438,10]
[402065750,1768503080668,-875.7,0.00036438,10]
[402065751,1768503080677,-821.78,0.00036438,10]
[402065752,1768503080686,-500.0,0.00036438,10]
[402065753,1768503080695,-500.0,0.00036438,10]
[402065754,1768503080704,-609.11,0.00036438,10]
[402065755,1768503080713,-500.0,0.00036438,10]
[402065756,1768503080723,-762.07,0.00036438,10]
[402065757,1768503080732,-500.0,0.00036438,10]
[402065758,1768503080741,-500.0,0.00036438,10]
[402065759,1768503080751,-696.18,0.00036438,10]
[402065760,1768503080760,-500.0,0.00036438,10]
[402065761,1768503080771,-500.0,0.00036438,10]
[402065762,1768503080782,-922.04,0.00036438,10]
[402065763,1768503080791,-500.0,0.00036438,10]
[402065764,1768503080800,-500.0,0.00036438,10]
[402065765,1768503080810,-1147.96,0.00036438,10]
[402065766,1768503080820,-500.0,0.00036438,10]
[402065767,1768503080829,-500.0,0.00036438,10]
[402065768,1768503080838,-500.0,0.00036438,10]
[402065769,1768503080847,-649.81,0.00036438,10]
[402065770,1768503080857,-389.20196016,0.00036438,10]
[402065771,1768503080866,-500.0,0.00036438,10]
[402065772,1768503080875,-612.4,0.00036438,10]
[402065773,1768503080884,-362.28596393,0.00036438,10]
[402065774,1768503080893,-500.0,0.00036438,10]
[402065775,1768503080902,-500.0,0.00036438,10]
[402065776,1768503080911,-636.55,0.00036438,10]
[402065777,1768503080920,-500.0,0.00036438,10]
[402065778,1768503080929,-500.0,0.00036438,10]
[402065779,1768503080938,-569.92,0.00036438,10]
[402065780,1768503080948,-500.0,0.00036438,10]
[402065781,1768503080957,-151.0,0.00036438,31]
[402065782,1768503080966,-500.0,0.00036438,10]
[402065783,1768503080975,-500.0,0.00036438,10]
[402065784,1768503080984,-151.0,0.00036438,31]
[402065785,1768503080993,-500.0,0.00036438,10]
[402065786,1768503081003,-500.0,0.00036438,10]
[402065787,1768503081012,-500.0,0.00036438,10]
[402065788,1768503081022,-820.49,0.00036438,10]
[402065789,1768503081031,-743.16,0.00036438,10]
[402065790,1768503081040,-500.0,0.00036438,10]
[402065791,1768503081049,-882.15,0.00036438,10]
[402065792,1768503081059,-500.0,0.00036438,10]
[402065793,1768503081068,-500.0,0.00036438,10]
[402065794,1768503081077,-820.87,0.00036438,10]
[402065795,1768503081087,-662.97,0.00036438,10]
[402065796,1768503081097,-500.0,0.00036438,10]
[402065797,1768503081108,-500.0,0.00036438,10]
[402065798,1768503081117,-1529.82,0.00036438,10]
[402065799,1768503081127,-643.88360139,0.00036438,10]
[402065800,1768503081136,-692.49,0.00036438,10]
[402065801,1768503081146,-500.0,0.00036438,10]
[402065802,1768503081155,-717.99,0.00036438,10]
[402065803,1768503081164,-500.0,0.00036438,10]
[402065804,1768503081174,-500.0,0.00036438,10]
[402065805,1768503081183,-151.0,0.00036438,31]
[402065806,1768503081193,-151.0,0.00036438,31]
[402065807,1768503081203,-504.7,0.00036438,10]
[402065808,1768503081212,-500.0,0.00036438,10]
[402065809,1768503081222,-3901.35,0.00036438,10]
[402065810,1768503081233,-570.42,0.00036438,10]
[402065811,1768503081243,-500.0,0.00036438,10]
[402065812,1768503081253,-500.0,0.00036438,10]
[402065813,1768503081262,-675.06,0.00036438,10]
[402065814,1768503081272,-500.0,0.00036438,10]
[402065815,1768503081281,-500.0,0.00036438,10]
[402065816,1768503081291,-587.93,0.00036438,10]
[402065817,1768503081300,-1171.44,0.00036438,10]
[402065818,1768503081309,-650.76,0.00036438,10]
[402065819,1768503081320,-500.0,0.00036438,10]
[402065820,1768503081330,-563.08,0.00036438,10]
[402065821,1768503081339,-500.0,0.00036438,10]
[402065822,1768503081348,-599.77,0.00036438,10]
[402065823,1768503081360,-500.0,0.00036438,10]
[402065824,1768503081370,-954.19,0.00036438,10]
[402065825,1768503081379,-500.0,0.00036438,10]
[402065826,1768503081390,-660.49,0.00036438,10]
[402065827,1768503081401,-500.0,0.00036438,10]
[402065828,1768503081410,-918.36,0.00036438,10]
[402065829,1768503081422,-617.54,0.00036438,10]
[402065830,1768503081431,-500.0,0.00036438,10]
[402065831,1768503081442,-3297.39,0.00036438,10]
[402065832,1768503081454,-604.91,0.00036438,10]
[402065833,1768503081463,-579.89,0.00036438,10]
[402065834,1768503081474,-500.0,0.00036438,10]
[402065835,1768503081484,-500.0,0.00036438,10]
[402065836,1768503081494,-535.87,0.00036438,10]
[402065837,1768503081504,-500.0,0.00036438,10]
[402065838,1768503081514,-591.24,0.00036438,10]
[402065839,1768503081524,-500.0,0.00036438,10]
[402065840,1768503081534,-882.6,0.00036438,10]
[402065841,1768503081543,-664.74,0.00036438,10]
[402065842,1768503081553,-500.0,0.00036438,10]
[402065843,1768503081562,-505.93,0.00036438,10]
[402065844,1768503081572,-500.0,0.00036438,10]
[402065845,1768503081581,-603.38,0.00036438,10]
[402065846,1768503081591,-1826.24,0.00036438,10]
[402065847,1768503081600,-1656.18,0.00036438,10]
[402065848,1768503081610,-609.06,0.00036438,10]
[402065849,1768503081621,-500.0,0.00036438,10]
[402065850,1768503081631,-500.0,0.00036438,120]
[402065851,1768503081640,-500.0,0.00036438,10]
[402065852,1768503081650,-500.0,0.00036438,10]
[402065853,1768503081659,-500.0,0.00036438,10]
[402065854,1768503081668,-1331.68,0.00036438,10]
[402065855,1768503081678,-500.0,0.00036438,10]
[402065856,1768503081688,-500.0,0.00036438,10]
[402065857,1768503081698,-500.0,0.00036438,10]
[402065858,1768503081708,-500.0,0.00036438,10]
[402065859,1768503081717,-500.0,0.00036438,10]
[402065860,1768503081727,-500.0,0.00036438,10]
[402065861,1768503081738,-679.71,0.00036438,10]
[402065862,1768503081748,-500.0,0.00036438,10]
[402065863,1768503081758,-651.94,0.00036438,10]
[402065864,1768503081769,-500.0,0.00036438,10]
[402065865,1768503081781,-529.12,0.00036438,10]
[402065866,1768503081790,-1257.61,0.00036438,10]
[402065867,1768503081801,-812.99,0.00036438,10]
[402065868,1768503081811,-659.28,0.00036438,10]
[402065869,1768503081821,-500.0,0.00036438,10]
[402065870,1768503081831,-574.37,0.00036438,10]
[402065871,1768503081841,-500.0,0.00036438,10]
[402065872,1768503081852,-500.0,0.00036438,10]
[402065873,1768503081864,-792.76,0.00036438,10]
[402065874,1768503081874,-2463.33,0.00036438,10]
[402065875,1768503081884,-291.56922303,0.00036438,10]
[402065876,1768503081893,-500.0,0.00036438,10]
[402065877,1768503081903,-388.04638012,0.00036438,10]
[402065878,1768503081913,-500.0,0.00036438,10]
[402065879,1768503081923,-500.0,0.00036438,10]
[402065880,1768503081933,-844.97,0.00036438,10]
[402065881,1768503081943,-721.87,0.00036438,10]
[402065882,1768503081953,-956.35,0.00036438,10]
[402065883,1768503081962,-727.82,0.00036438,10]
[402065884,1768503081972,-641.12,0.00036438,10]
[402065885,1768503081983,-500.0,0.00036438,10]
[402065886,1768503081993,-569.34,0.00036438,10]
[402065887,1768503082002,-200.0,0.00036438,120]
[402065888,1768503082012,-500.0,0.00036438,10]
[402065889,1768503082022,-735.15,0.00036438,10]
[402065890,1768503082033,-500.0,0.00036438,10]
[402065891,1768503082043,-947.56,0.00036438,10]
[402065892,1768503082054,-816.34,0.00036438,10]
[402065893,1768503082064,-868.84,0.00036438,10]
[402065894,1768503082074,-500.0,0.00036438,10]
[402065895,1768503082084,-500.0,0.00036438,10]
[402065896,1768503082093,-761.47,0.00036438,10]
[402065897,1768503082103,-500.0,0.00036438,10]
[402065898,1768503082114,-500.0,0.00036438,10]
[402065899,1768503082123,-1139.64,0.00036438,10]
[402065900,1768503082133,-500.0,0.00036438,10]
[402065901,1768503082142,-500.0,0.00036438,10]
[402065902,1768503082152,-651.59,0.00036438,10]
[402065903,1768503082162,-506.47,0.00036438,10]
[402065904,1768503082172,-1079.44,0.00036438,10]
[402065905,1768503082182,-500.0,0.00036438,10]
[402065906,1768503082192,-500.0,0.00036438,10]
[402065907,1768503082202,-500.0,0.00036438,10]
[402065908,1768503082211,-1103.44,0.00036438,10]
[402065909,1768503082221,-500.0,0.00036438,10]
[402065910,1768503082231,-714.33,0.00036438,10]
[402065911,1768503082241,-534.34,0.00036438,10]
[402065912,1768503082251,-500.0,0.00036438,10]
[402065913,1768503082261,-500.0,0.00036438,10]
[402065914,1768503082270,-500.0,0.00036438,10]
[402065915,1768503082280,-500.0,0.00036438,10]
[402065916,1768503082290,-761.11,0.00036438,10]
[402065917,1768503082301,-3579.88,0.00036438,10]
[402065918,1768503082310,-1270.78,0.00036438,10]
[402065919,1768503082321,-848.31,0.00036438,10]
[402065920,1768503082332,-988.46,0.00036438,10]
[402065921,1768503082342,-500.0,0.00036438,10]
[402065922,1768503082353,-500.0,0.00036438,10]
[402065923,1768503082363,-500.0,0.00036438,10]
[402065924,1768503082373,-500.0,0.00036438,10]
[402065925,1768503082382,-1039.68,0.00036438,10]
[402065926,1768503082392,-500.0,0.00036438,10]
[402065927,1768503082402,-845.57,0.00036438,10]
[402065928,1768503082412,-500.0,0.00036438,10]
[402065929,1768503082422,-500.0,0.00036438,10]
[402065930,1768503082431,-1299.34,0.00036438,10]
[402065931,1768503082440,-814.08,0.00036438,10]
[402065932,1768503082450,-775.84,0.00036438,10]
[402065933,1768503082459,-500.0,0.00036438,10]
[402065934,1768503082469,-917.95,0.00036438,10]
[402065935,1768503082479,-116.38204992,0.00036438,10]
[402065936,1768503083990,-151.0,0.00020564,2]
[402065937,1768503084000,-1010.29061747,0.00023828,2]
[402065938,1768503084015,-3967.07511048,0.00023828,2]
[402065939,1768503084026,-279.30591445,0.00035616,10]
[402065940,1768503084039,-220.69408555,0.00035616,10]
[402065941,1768503084050,-167.92026906,0.00036438,10]
[402065942,1768503084063,-215.69768102,0.00036438,10]
[402065943,1768503084074,-63.98796607,0.00036438,10]
[402065944,1768503084086,-617.80203393,0.00036438,10]
[402065945,1768503084096,-690.07,0.00036438,10]
[402065946,1768503084106,-849.52122272,0.00036438,10]
[402065947,1768503084119,-170.90877728,0.00036438,10]
[402065948,1768503084128,-500.0,0.00036438,10]
[402065949,1768503084138,-1303.25,0.00036438,10]
[402065950,1768503084148,-2164.76,0.00036438,10]
[402065951,1768503084158,-500.0,0.00036438,10]
[402065952,1768503084168,-779.73,0.00036438,10]
[402065953,1768503084178,-500.0,0.00036438,10]
[402065954,1768503084187,-690.15,0.00036438,10]
[402065955,1768503084197,-500.0,0.00036438,10]
[402065956,1768503084206,-587.63,0.00036438,10]
[402065957,1768503084216,-280.09256947,0.00036438,10]
[402065958,1768503084226,-500.0,0.00036438,10]
[402065959,1768503084235,-500.0,0.00036438,10]
[402065960,1768503084244,-500.0,0.00036438,10]
[402065961,1768503084255,-2598.8,0.00036438,10]
[402065962,1768503084264,-568.25,0.00036438,10]
[402065963,1768503084275,-500.0,0.00036438,10]
[402065964,1768503084284,-889.29,0.00036438,10]
[402065965,1768503084294,-500.0,0.00036438,10]
[402065966,1768503084304,-780.18,0.00036438,10]
[402065967,1768503084314,-1154.26,0.00036438,10]
[402065968,1768503084324,-816.3,0.00036438,10]
[402065969,1768503084334,-500.0,0.00036438,10]
[402065970,1768503084344,-3771.07,0.00036438,10]
[402065971,1768503084354,-500.0,0.00036438,10]
[402065972,1768503084365,-1378.93,0.00036438,10]
[402065973,1768503084375,-500.0,0.00036438,10]
[402065974,1768503084385,-500.0,0.00036438,10]
[402065975,1768503084395,-1978.3481,0.00036438,78]
[402065976,1768503084404,-1978.34811,0.00036438,78]
[402065977,1768503084414,-917.89,0.00036438,10]
[402065978,1768503084427,-1978.3481,0.00036438,78]
[402065979,1768503084436,-1978.3481,0.00036438,78]
[402065980,1768503084446,-500.0,0.00036438,10]
[402065981,1768503084456,-500.0,0.00036438,10]
[402065982,1768503084465,-654.06,0.00036438,10]
[402065983,1768503084475,-782.23,0.00036438,10]
[402065984,1768503084484,-526.12163381,0.00036438,10]
[402065985,1768503084493,-500.0,0.00036438,10]
[402065986,1768503084502,-500.0,0.00036438,10]
[402065987,1768503084511,-653.6,0.00036438,10]
[402065988,1768503084521,-500.0,0.00036438,10]
[402065989,1768503084530,-566.14,0.00036438,10]
[402065990,1768503084539,-767.47,0.00036438,10]
[402065991,1768503084548,-917.55,0.00036438,10]
[402065992,1768503084557,-500.0,0.00036438,10]
[402065993,1768503084567,-1216.62,0.00036438,10]
[402065994,1768503084576,-701.02,0.00036438,10]
[402065995,1768503084586,-1006.43,0.00036438,10]
[402065996,1768503084595,-500.0,0.00036438,10]
[402065997,1768503084604,-615.31,0.00036438,10]
[402065998,1768503084615,-534.06,0.00036438,10]
[402065999,1768503084624,-933.99,0.00036438,10]
[402066000,1768503084633,-821.62,0.00036438,10]
[402066001,1768503084643,-2075.18,0.00036438,10]
[402066002,1768503084651,-500.0,0.00036438,10]
[402066003,1768503084660,-500.0,0.00036438,10]
[402066004,1768503084669,-211.2095515,0.00036438,10]
[402066005,1768503084679,-500.0,0.00036438,10]
[402066006,1768503084689,-500.0,0.00036438,10]
[402066007,1768503084699,-500.0,0.00036438,10]
[402066008,1768503084709,-1361.57,0.00036438,10]
[402066009,1768503084719,-593.78,0.00036438,10]
[402066010,1768503084728,-500.0,0.00036438,10]
[402066011,1768503084739,-500.0,0.00036438,10]
[402066012,1768503084749,-818.34,0.00036438,10]
[402066013,1768503084760,-769.22,0.00036438,10]
[402066014,1768503084771,-500.0,0.00036438,10]
[402066015,1768503084786,-500.0,0.00036438,10]
[402066016,1768503084796,-464.906661,0.00036438,7]
[402066017,1768503084806,-500.0,0.00036438,10]
[402066018,1768503084816,-464.906661,0.00036438,7]
[402066019,1768503084830,-1227.45,0.00036438,10]
[402066020,1768503084840,-500.0,0.00036438,10]
[402066021,1768503084851,-464.906661,0.00036438,7]
[402066022,1768503084861,-513.79,0.00036438,10]
[402066023,1768503084871,-971.54,0.00036438,10]
[402066024,1768503084882,-464.906661,0.00036438,7]
[402066025,1768503084895,-500.0,0.00036438,10]
[402066026,1768503084905,-500.0,0.00036438,10]
[402066027,1768503084915,-286.53798775,0.00036438,10]
[402066028,1768503084925,-500.0,0.00036438,10]
[402066029,1768503084935,-500.0,0.00036438,10]
[402066030,1768503084945,-500.0,0.00036438,10]
[402066031,1768503084956,-524.52,0.00036438,10]
[402066032,1768503084966,-615.02,0.00036438,10]
[402066033,1768503084976,-500.0,0.00036438,10]
[402066034,1768503084985,-151.0,0.00036438,31]
[402066035,1768503084994,-521.83,0.00036438,10]
[402066036,1768503085003,-151.0,0.00036438,31]
[402066037,1768503085013,-252.67488497,0.00036438,2]
[402066038,1768503085022,-500.0,0.00036438,10]
[402066039,1768503085032,-1933.97,0.00036438,10]
[402066040,1768503085041,-1075.65,0.00036438,10]
[402066041,1768503085050,-1367.5,0.00036438,10]
[402066042,1768503085059,-551.33,0.00036438,10]
[402066043,1768503085068,-500.0,0.00036438,10]
[402066044,1768503085077,-500.0,0.00036438,10]
[402066045,1768503085087,-500.0,0.00036438,10]
[402066046,1768503085096,-500.0,0.00036438,10]
[402066047,1768503085105,-500.0,0.00036438,10]
[402066048,1768503085116,-500.0,0.00036438,10]
[402066049,1768503085125,-641.61,0.00036438,10]
[402066050,1768503085134,-500.0,0.00036438,10]
[402066051,1768503085143,-911.57,0.00036438,10]
[402066052,1768503085152,-500.0,0.00036438,10]
[402066053,1768503085161,-739.18,0.00036438,10]
[402066054,1768503085170,-639.28,0.00036438,10]
[402066055,1768503085180,-500.0,0.00036438,10]
[402066056,1768503085189,-645.12,0.00036438,10]
[402066057,1768503085198,-500.0,0.00036438,10]
[402066058,1768503085207,-1489.76,0.00036438,10]
[402066059,1768503085219,-90.25830964,0.00036438,10]
[402066060,1768503085245,-478.70940375,0.00036438,10]
[402066061,1768503085256,-259.54228661,0.00036438,10]
[402066062,1768503085265,-103.08027907,0.00036438,10]
[402066063,1768503085577,310.17607642,0.00017162,2]
[402066064,1768503110677,-468.42587056,0.00017125,2]
[402066065,1768503114661,-265.0,0.00017125,2]
[402066066,1768503116118,-214.65359386,0.00017125,2]